bitfinex/quotes_BTCUSD_20240717
["timestamp","ask_amount","ask_price","bid_price","bid_amount"]
[1721256368121,0.00694934,64403.0,64402.0,2.07314805]
[1721256368773,0.00694934,64403.0,64402.0,2.06014805]
[1721256369143,0.00694934,64403.0,64402.0,1.91182546]
[1721256369548,0.00694934,64403.0,64402.0,1.88480584]
[1721256369954,0.00694934,64403.0,64402.0,1.89880583]
[1721256370155,0.00694934,64403.0,64402.0,1.88480583]
[1721256370579,0.00694934,64403.0,64402.0,1.88015643]
[1721256371266,0.00694934,64403.0,64402.0,1.89415643]
[1721256372408,0.00194934,64403.0,64402.0,1.89415643]
[1721256372614,0.00834,64408.0,64402.0,1.89415643]
[1721256372615,0.00834,64408.0,64407.0,2.207525]
[1721256372891,0.00834,64418.0,64417.0,1.029105]
[1721256373019,0.00834,64418.0,64417.0,1.94796491]
[1721256373224,0.00834,64418.0,64417.0,2.56891891]
[1721256374052,0.00834,64418.0,64417.0,2.58756381]
[1721256374257,0.00834,64418.0,64417.0,2.56891891]
[1721256375054,0.00834,64418.0,64417.0,2.58291891]
[1721256375264,0.00834,64418.0,64417.0,2.27244191]
[1721256375610,0.00834,64418.0,64417.0,2.27241536]
[1721256376015,0.00834,64418.0,64417.0,2.28641536]
[1721256376431,0.00834,64418.0,64417.0,2.27241536]
[1721256376631,0.00834,64418.0,64417.0,2.28641536]
[1721256376762,0.00834,64418.0,64417.0,2.27241536]
[1721256377164,0.00834,64418.0,64417.0,2.28641536]
[1721256377585,0.00834,64418.0,64417.0,2.27241536]
[1721256377785,0.00834,64418.0,64417.0,2.28641536]
[1721256378262,0.00834,64418.0,64417.0,2.27241536]
[1721256378691,0.00834,64418.0,64417.0,2.28641536]
[1721256381554,0.00834,64418.0,64417.0,2.28641535]
[1721256381752,0.00834,64418.0,64417.0,2.15754074]
[1721256381951,0.00834,64418.0,64417.0,2.28641536]
[1721256385046,0.00834,64418.0,64417.0,2.15754074]
[1721256385223,0.00834,64418.0,64417.0,2.28641401]
[1721256385720,0.00834,64418.0,64417.0,2.23641401]
[1721256387384,0.00834,64418.0,64417.0,1.72593701]
[1721256387583,0.00834,64418.0,64417.0,1.27926001]
[1721256387785,0.00834,64418.0,64417.0,1.05038674]
[1721256388315,0.00834,64418.0,64417.0,0.17129474]
[1721256388527,0.394912,64418.0,64417.0,0.18529474]
[1721256388730,0.303076,64418.0,64417.0,0.18529474]
[1721256389130,0.303076,64418.0,64417.0,0.15729474]
[1721256389333,0.14784,64418.0,64417.0,0.15729474]
[1721256389914,0.14784,64418.0,64417.0,0.17129474]
[1721256390400,0.14784,64418.0,64417.0,0.18529474]
[1721256390603,0.303076,64418.0,64417.0,0.17129474]
[1721256391010,0.303076,64418.0,64417.0,0.18529474]
[1721256392089,0.613548,64418.0,64417.0,0.028]
[1721256392218,0.92402,64418.0,64417.0,0.028]
[1721256392824,0.613548,64418.0,64417.0,0.028]
[1721256393041,0.613548,64418.0,64417.0,0.030913]
[1721256396788,0.613548,64418.0,64417.0,0.028]
[1721256396789,1.234492,64418.0,64417.0,0.028]
[1721256397037,1.281579,64418.0,64417.0,0.028]
[1721256397392,1.304579,64418.0,64417.0,0.028]
[1721256397593,1.357492,64418.0,64417.0,0.028]
[1721256397817,1.51438149,64418.0,64417.0,0.028]
[1721256398006,1.45018594,64418.0,64417.0,0.028]
[1721256398224,1.357492,64418.0,64417.0,0.028]
[1721256398436,1.357492,64418.0,64417.0,0.014]
[1721256398694,1.49725709,64418.0,64417.0,0.014]
[1721256398897,1.45017009,64418.0,64417.0,0.014]
[1721256399106,1.76064209,64418.0,64417.0,0.028]
[1721256399520,0.776287,64409.0,64408.0,0.000913]
[1721256399726,0.917887,64409.0,64408.0,0.000913]
[1721256399935,1.228402,64409.0,64408.0,0.000913]
[1721256400792,1.228402,64409.0,64408.0,0.002913]
[1721256401863,1.228402,64409.0,64408.0,0.008913]
[1721256406934,1.561917,64409.0,64408.0,0.008913]
[1721256407106,2.17390074,64409.0,64408.0,0.008913]
[1721256407447,2.17390074,64409.0,64403.0,0.00025602]
[1721256407448,1.444512,64404.0,64403.0,0.00025602]
[1721256407648,1.444512,64404.0,64391.0,0.000913]
[1721256407649,0.527595,64392.0,64391.0,0.000913]
[1721256407916,0.861192,64392.0,64391.0,0.000913]
[1721256408085,1.171789,64392.0,64391.0,0.000913]
[1721256408660,1.247889,64392.0,64391.0,0.000913]
[1721256409133,1.247889,64392.0,64391.0,0.013913]
[1721256409372,1.247889,64392.0,64391.0,0.022913]
[1721256414871,1.224889,64392.0,64391.0,0.022913]
[1721256419851,1.54884664,64392.0,64391.0,0.022913]
[1721256419972,2.08235474,64392.0,64391.0,0.022913]
[1721256420368,2.12166344,64392.0,64391.0,0.022913]
[1721256420818,2.12166344,64392.0,64391.0,0.013913]
[1721256421029,2.12166344,64392.0,64391.0,0.015913]
[1721256422720,2.30574678,64389.0,64388.0,1e-06]
[1721256422913,2.30874678,64389.0,64388.0,1e-06]
[1721256423157,2.30574678,64389.0,64388.0,1e-06]
[1721256423472,2.34441306,64389.0,64388.0,0.001001]
[1721256423680,2.27384474,64389.0,64388.0,0.001001]
[1721256424384,2.31365311,64389.0,64388.0,0.001001]
[1721256424620,2.27384474,64389.0,64388.0,0.001001]
[1721256425034,2.28184474,64389.0,64388.0,0.002001]
[1721256427166,2.23475774,64389.0,64388.0,0.002001]
[1721256427997,2.28184474,64389.0,64388.0,0.002001]
[1721256428652,1.83083574,64389.0,64388.0,0.002001]
[1721256428812,1.87792274,64389.0,64388.0,0.002001]
[1721256429427,2.43619431,64389.0,64388.0,1e-06]
[1721256429636,1.13426,64387.0,64386.0,0.000913]
[1721256429831,1.64675174,64387.0,64386.0,0.000913]
[1721256430044,1.95737274,64387.0,64386.0,0.000913]
[1721256430663,2.26799374,64387.0,64386.0,0.000913]
[1721256431060,2.27599374,64387.0,64386.0,0.001913]
[1721256432285,2.28499374,64387.0,64386.0,0.002913]
[1721256432699,2.28499374,64387.0,64369.0,0.002794]
[1721256432700,1.08746,64370.0,64369.0,0.002794]
[1721256432917,0.466062,64369.0,64368.0,0.000913]
[1721256433131,1.568273,64369.0,64368.0,0.000913]
[1721256433334,1.521186,64369.0,64368.0,0.000913]
[1721256434505,1.521186,64369.0,64368.0,0.065813]
[1721256434945,1.521186,64369.0,64368.0,0.000913]
[1721256435366,1.52398,64369.0,64368.0,0.003913]
[1721256435567,1.52498,64369.0,64368.0,0.003913]
[1721256436258,1.74206174,64369.0,64368.0,0.003913]
[1721256436892,2.09985674,64369.0,64368.0,0.003913]
[1721256437095,2.57997474,64369.0,64368.0,1e-06]
[1721256437450,2.65117754,64369.0,64368.0,1e-06]
[1721256437857,2.65117592,64369.0,64368.0,1e-06]
[1721256438060,1.756272,64358.0,64357.0,0.000913]
[1721256438266,2.32085374,64358.0,64357.0,0.000913]
[1721256438910,2.24634053,64358.0,64357.0,0.000913]
[1721256439104,1.86955879,64358.0,64357.0,0.000913]
[1721256439392,1.521424,64358.0,64357.0,0.000913]
[1721256440287,1.525424,64358.0,64357.0,0.000913]
[1721256440482,1.526424,64358.0,64357.0,0.000913]
[1721256442241,1.573511,64358.0,64357.0,0.000913]
[1721256442406,2.26105374,64358.0,64357.0,0.000913]
[1721256443204,2.21396674,64358.0,64357.0,0.000913]
[1721256443419,1.526424,64358.0,64357.0,0.000913]
[1721256443892,1.526424,64358.0,64357.0,0.082413]
[1721256447249,1.526424,64358.0,64357.0,0.000913]
[1721256447635,1.748824,64358.0,64357.0,0.000913]
[1721256447846,2.182772,64358.0,64357.0,0.000913]
[1721256448414,2.33715374,64358.0,64357.0,0.000913]
[1721256453327,2.36792485,64358.0,64357.0,0.000913]
[1721256453464,2.32083785,64358.0,64357.0,0.000913]
[1721256453667,2.24473785,64358.0,64357.0,0.000913]
[1721256453874,2.21396674,64358.0,64357.0,0.000913]
[1721256454285,1.7115767,64358.0,64357.0,0.000913]
[1721256454713,1.68080574,64358.0,64357.0,0.000913]
[1721256454938,1.68080574,64358.0,64357.0,0.082013]
[1721256454939,1.503424,64358.0,64357.0,0.082013]
[1721256456174,1.526424,64358.0,64357.0,0.082013]
[1721256460489,1.56883762,64358.0,64357.0,0.082013]
[1721256461311,1.526424,64358.0,64357.0,0.082013]
[1721256461731,1.56883547,64358.0,64357.0,0.082013]
[1721256461893,1.25807447,64358.0,64357.0,0.144613]
[1721256462108,1.215663,64358.0,64357.0,0.144613]
[1721256462399,0.471141,64358.0,64357.0,0.147526]
[1721256462642,0.16038,64358.0,64357.0,0.147526]
[1721256462885,0.005,64358.0,64357.0,0.147526]
[1721256463493,0.16038,64358.0,64357.0,0.147526]
[1721256463798,0.466141,64358.0,64357.0,0.147526]
[1721256464177,0.156186,64368.0,64367.0,0.140713]
[1721256464382,0.466899,64368.0,64367.0,0.140713]
[1721256464788,0.777612,64368.0,64367.0,0.140713]
[1721256465340,0.800612,64368.0,64367.0,0.140713]
[1721256465518,0.808612,64368.0,64367.0,0.141713]
[1721256465720,0.474899,64368.0,64367.0,0.141713]
[1721256465925,0.00883,64368.0,64367.0,0.141713]
[1721256466538,0.170186,64368.0,64367.0,0.141713]
[1721256467185,0.164186,64368.0,64367.0,0.141713]
[1721256467621,0.165186,64368.0,64367.0,0.141713]
[1721256467934,0.156186,64368.0,64367.0,0.140713]
[1721256468298,0.00083,64368.0,64367.0,0.140713]
[1721256468500,0.00083,64368.0,64367.0,0.29509474]
[1721256469103,0.00183,64368.0,64367.0,0.30109474]
[1721256469308,0.00283,64368.0,64367.0,0.30609474]
[1721256470632,0.158186,64368.0,64367.0,0.30609474]
[1721256478197,0.00283,64368.0,64367.0,0.77217174]
[1721256479947,0.00283,64368.0,64367.0,0.46145374]
[1721256480136,0.00283,64368.0,64367.0,0.30609474]
[1721256480137,0.779612,64368.0,64367.0,0.30609474]
[1721256480558,1.090325,64368.0,64367.0,0.151713]
[1721256480721,1.090325,64368.0,64367.0,0.089113]
[1721256480722,1.113325,64368.0,64367.0,0.089113]
[1721256481529,1.113325,64368.0,64367.0,0.0862]
[1721256481726,1.113325,64368.0,64367.0,0.089113]
[1721256483955,1.113325,64368.0,64367.0,0.0862]
[1721256484131,1.113325,64368.0,64367.0,0.011]
[1721256486389,1.424038,64368.0,64367.0,0.011]
[1721256486591,1.524038,64368.0,64367.0,0.011]
[1721256487453,1.523038,64368.0,64367.0,0.005]
[1721256487595,1.087614,64361.0,64360.0,0.065913]
[1721256487797,0.46612,64361.0,64360.0,0.145313]
[1721256488928,0.46712,64361.0,64360.0,0.152313]
[1721256490096,0.778867,64361.0,64360.0,0.155313]
[1721256490279,1.089614,64361.0,64360.0,0.01]
[1721256490419,1.112614,64361.0,64360.0,0.01]
[1721256490825,1.94837906,64361.0,64360.0,0.01]
[1721256491023,1.87893505,64361.0,64360.0,0.01]
[1721256491213,1.87793505,64361.0,64360.0,0.003]
[1721256491426,2.23576905,64361.0,64360.0,0.003]
[1721256491632,1.88293505,64361.0,64360.0,0.004]
[1721256491843,1.65953505,64361.0,64360.0,0.001]
[1721256492037,1.087663,64358.0,64357.0,0.000913]
[1721256492424,1.59389805,64358.0,64357.0,0.000913]
[1721256492800,1.70960709,64358.0,64357.0,0.000913]
[1721256493375,1.66780151,64358.0,64357.0,0.000913]
[1721256493603,1.59773058,64358.0,64357.0,0.000913]
[1721256493797,1.71342698,64358.0,64357.0,0.000913]
[1721256494385,1.60273058,64358.0,64357.0,0.000913]
[1721256494762,1.59773058,64358.0,64357.0,0.000913]
[1721256495166,1.60573058,64358.0,64357.0,0.000913]
[1721256496359,1.56311074,64358.0,64357.0,0.000913]
[1721256496567,1.60561319,64358.0,64357.0,0.000913]
[1721256499672,1.60577771,64358.0,64357.0,0.000913]
[1721256500030,1.56311074,64358.0,64357.0,0.000913]
[1721256500279,1.60563494,64358.0,64357.0,0.000913]
[1721256505976,1.60632395,64358.0,64357.0,0.000913]
[1721256509104,1.6055639,64358.0,64357.0,0.000913]
[1721256509400,1.60556404,64358.0,64357.0,0.000913]
[1721256509631,1.60556417,64358.0,64357.0,0.000913]
[1721256512339,1.60487411,64358.0,64357.0,0.000913]
[1721256513749,0.140397,64354.0,64353.0,1e-06]
[1721256513948,0.140397,64354.0,64352.0,0.000913]
[1721256513949,0.795789,64353.0,64352.0,0.000913]
[1721256514199,2.60573564,64353.0,64352.0,0.000913]
[1721256514403,2.91652064,64353.0,64352.0,0.000913]
[1721256514598,2.91652064,64353.0,64352.0,1e-06]
[1721256514599,3.304829,64353.0,64352.0,1e-06]
[1721256514806,3.32870946,64353.0,64352.0,1e-06]
[1721256514954,3.48497023,64353.0,64352.0,1e-06]
[1721256515153,3.30479317,64353.0,64352.0,1e-06]
[1721256515397,3.48488332,64353.0,64352.0,1e-06]
[1721256515569,3.30479317,64353.0,64352.0,1e-06]
[1721256515819,3.47491208,64353.0,64352.0,1e-06]
[1721256515961,3.39773729,64353.0,64352.0,1e-06]
[1721256516519,3.24161838,64353.0,64352.0,1e-06]
[1721256517573,3.25561838,64353.0,64352.0,1e-06]
[1721256518129,3.24161838,64353.0,64352.0,1e-06]
[1721256518282,3.24261344,64353.0,64352.0,1e-06]
[1721256518687,3.12236748,64353.0,64352.0,1e-06]
[1721256518890,3.2425117,64353.0,64352.0,1e-06]
[1721256519290,2.6574117,64353.0,64352.0,1e-06]
[1721256519492,2.704386,64353.0,64352.0,1e-06]
[1721256519719,2.50183802,64353.0,64352.0,1e-06]
[1721256520604,2.12996602,64353.0,64352.0,1e-06]
[1721256520959,1.55485953,64353.0,64352.0,0.145801]
[1721256521163,1.48548928,64353.0,64352.0,0.145801]
[1721256521507,1.12996477,64353.0,64352.0,0.145801]
[1721256521789,1.115747,64353.0,64352.0,0.145801]
[1721256522163,1.101747,64353.0,64352.0,0.145801]
[1721256522362,1.14391293,64353.0,64352.0,0.145801]
[1721256522558,1.114747,64353.0,64352.0,0.145801]
[1721256523009,1.223747,64353.0,64352.0,0.145801]
[1721256523217,1.246747,64353.0,64352.0,0.145801]
[1721256523431,1.223747,64353.0,64352.0,0.145801]
[1721256523627,1.232747,64353.0,64352.0,0.145801]
[1721256524039,1.219747,64353.0,64352.0,0.145801]
[1721256524379,1.26253639,64353.0,64352.0,0.145801]
[1721256524990,1.087831,64348.0,64347.0,0.002913]
[1721256525173,1.110831,64348.0,64347.0,0.002913]
[1721256526722,0.023,64348.0,64346.0,0.002913]
[1721256526897,0.155407,64347.0,64346.0,0.002913]
[1721256527036,0.178407,64347.0,64346.0,0.002913]
[1721256527658,0.800035,64347.0,64346.0,0.002913]
[1721256528074,0.800035,64347.0,64346.0,0.141513]
[1721256529026,0.800035,64347.0,64346.0,0.142513]
[1721256529672,0.800035,64347.0,64346.0,0.144513]
[1721256530096,0.800035,64347.0,64346.0,0.142513]
[1721256530309,0.800035,64347.0,64346.0,0.141513]
[1721256530909,0.800035,64347.0,64346.0,0.143513]
[1721256531320,0.800035,64347.0,64346.0,0.141513]
[1721256531525,0.800035,64347.0,64346.0,0.143513]
[1721256531739,0.800035,64347.0,64346.0,0.1406]
[1721256532140,0.801035,64347.0,64346.0,0.1406]
[1721256532340,0.800035,64347.0,64346.0,0.1386]
[1721256532700,1.111849,64347.0,64346.0,0.1406]
[1721256532851,1.111849,64347.0,64346.0,0.1386]
[1721256533232,1.16119105,64347.0,64346.0,0.1386]
[1721256533649,1.16119105,64347.0,64346.0,0.1416]
[1721256534201,1.16119105,64347.0,64337.0,0.009174]
[1721256534202,1.087901,64344.0,64341.0,0.1457]
[1721256534401,1.39873,64344.0,64341.0,0.1457]
[1721256534603,1.53767999,64344.0,64341.0,0.1457]
[1721256534790,1.4934089,64344.0,64341.0,0.1457]
[1721256534989,1.45253714,64344.0,64341.0,0.1457]
[1721256535434,1.45253714,64344.0,64337.0,0.009174]
[1721256535661,1.45253714,64344.0,64343.0,0.010174]
[1721256535786,1.49342806,64344.0,64343.0,0.009174]
[1721256536188,1.18259906,64344.0,64343.0,0.009174]
[1721256536390,1.14170814,64344.0,64343.0,0.154874]
[1721256536805,1.111901,64344.0,64343.0,0.157787]
[1721256537144,1.22796807,64344.0,64343.0,0.157787]
[1721256537283,1.110901,64344.0,64343.0,0.157787]
[1721256537695,1.113901,64344.0,64343.0,0.157787]
[1721256537946,0.472243,64344.0,64343.0,0.157787]
[1721256538209,0.469243,64344.0,64343.0,0.157787]
[1721256538391,0.82651163,64344.0,64343.0,0.157787]
[1721256538564,0.82751163,64344.0,64343.0,0.157787]
[1721256538939,0.778072,64344.0,64343.0,0.157787]
[1721256539132,0.84773145,64344.0,64343.0,0.158787]
[1721256539336,0.778072,64344.0,64343.0,0.157787]
[1721256539691,0.778072,64344.0,64343.0,0.159787]
[1721256540194,0.778072,64344.0,64343.0,0.161787]
[1721256540598,0.778072,64344.0,64343.0,0.159787]
[1721256540798,0.777072,64344.0,64343.0,0.160787]
[1721256540996,0.06968962,64345.0,64344.0,0.148613]
[1721256541182,0.06968962,64346.0,64344.0,0.15729474]
[1721256541382,0.06968962,64346.0,64345.0,0.30299474]
[1721256541578,0.06968962,64348.0,64346.0,0.15832]
[1721256541890,0.04646316,64353.0,64351.0,0.155395]
[1721256542012,0.20185116,64355.0,64354.0,0.002913]
[1721256542215,0.155388,64355.0,64354.0,0.30299474]
[1721256543121,0.155388,64355.0,64354.0,0.30299474]
[1721256543396,0.04646346,64357.0,64354.0,0.15729474]
[1721256543600,0.04646346,64358.0,64357.0,0.145213]
[1721256543830,0.155379,64359.0,64358.0,0.002913]
[1721256544034,0.155379,64359.0,64358.0,0.29959474]
[1721256544577,0.466135,64359.0,64358.0,0.29959474]
[1721256544992,0.155379,64359.0,64358.0,0.29959474]
[1721256545345,0.156379,64359.0,64358.0,0.30959474]
[1721256546528,0.157379,64359.0,64358.0,0.31759474]
[1721256546737,0.778891,64359.0,64358.0,0.31759474]
[1721256546941,0.778891,64359.0,64358.0,0.163213]
[1721256547138,0.623512,64359.0,64358.0,0.163213]
[1721256548179,0.468135,64359.0,64358.0,0.163213]
[1721256548910,0.002,64359.0,64358.0,0.47297474]
[1721256549330,0.002,64359.0,64358.0,0.31759474]
[1721256552757,0.00283,64359.0,64358.0,0.31759474]
[1721256552961,0.00283,64359.0,64358.0,1.09449674]
[1721256553606,0.00283,64359.0,64358.0,0.78373574]
[1721256553960,0.00283,64359.0,64358.0,1.09449674]
[1721256555160,0.00283,64359.0,64358.0,1.40525774]
[1721256555539,0.00283,64359.0,64358.0,1.67765774]
[1721256556306,0.00183,64359.0,64358.0,1.61965774]
[1721256556739,0.00183,64359.0,64358.0,1.61865774]
[1721256557086,0.00283,64359.0,64358.0,1.09749674]
[1721256557201,0.00183,64359.0,64358.0,1.08849674]
[1721256557400,0.00283,64359.0,64358.0,1.09749674]
[1721256557805,0.00283,64359.0,64358.0,0.78673574]
[1721256558236,0.00183,64359.0,64358.0,0.30859474]
[1721256558833,0.00283,64359.0,64358.0,0.32259474]
[1721256558960,0.00083,64359.0,64358.0,0.29959474]
[1721256561512,0.00083,64359.0,64358.0,0.32759474]
[1721256562513,0.156208,64359.0,64358.0,0.32759474]
[1721256562738,0.00083,64359.0,64358.0,0.32759474]
[1721256563958,0.466964,64359.0,64358.0,0.32759474]
[1721256564206,0.156208,64359.0,64358.0,0.32759474]
[1721256565931,0.156208,64359.0,64358.0,0.26439474]
[1721256565932,0.466964,64359.0,64358.0,0.26439474]
[1721256566619,0.466964,64359.0,64358.0,0.18529474]
[1721256566884,1.088476,64359.0,64358.0,0.030913]
[1721256568110,1.088476,64359.0,64358.0,0.002913]
[1721256568781,1.089476,64359.0,64358.0,0.012913]
[1721256568783,1.089476,64359.0,64358.0,0.002913]
[1721256569017,1.090476,64359.0,64358.0,0.012913]
[1721256569297,1.089476,64359.0,64358.0,0.004913]
[1721256574536,1.089476,64359.0,64358.0,0.002]
[1721256574683,1.089476,64359.0,64358.0,0.004913]
[1721256575500,1.089476,64359.0,64358.0,0.002]
[1721256575823,1.089476,64359.0,64358.0,0.004913]
[1721256578724,0.77872,64359.0,64358.0,0.004913]
[1721256578924,0.467964,64359.0,64358.0,0.004913]
[1721256582775,0.77872,64359.0,64358.0,0.004913]
[1721256584272,0.82513733,64359.0,64358.0,0.004913]
[1721256584433,0.77872,64359.0,64358.0,0.004913]
[1721256584633,0.77872,64359.0,64358.0,0.005826]
[1721256585251,0.82513733,64359.0,64358.0,0.005826]
[1721256585648,0.77872,64359.0,64358.0,0.005826]
[1721256586333,0.82517797,64359.0,64358.0,0.005826]
[1721256587526,0.467964,64359.0,64358.0,0.005826]
[1721256589277,0.04829523,64359.0,64358.0,0.45788774]
[1721256589482,0.04829327,64359.0,64358.0,0.76864874]
[1721256589674,0.00183,64359.0,64358.0,1.07940974]
[1721256590235,0.00083,64359.0,64358.0,1.07740974]
[1721256590627,0.00283,64359.0,64358.0,1.09340974]
[1721256590860,0.00183,64359.0,64358.0,1.08440974]
[1721256591327,0.00283,64359.0,64358.0,0.32150774]
[1721256591867,0.467964,64359.0,64358.0,0.160126]
[1721256592067,0.00083,64359.0,64358.0,0.30050774]
[1721256592271,0.00183,64359.0,64358.0,0.31450774]
[1721256592499,0.157208,64359.0,64358.0,0.31450774]
[1721256592704,0.156208,64359.0,64358.0,0.30050774]
[1721256593131,0.157208,64359.0,64358.0,0.31450774]
[1721256593536,0.158208,64359.0,64358.0,0.32850774]
[1721256593955,0.157208,64359.0,64358.0,0.31450774]
[1721256594383,0.158208,64359.0,64358.0,0.32850774]
[1721256599992,0.00283,64359.0,64358.0,0.32850774]
[1721256601527,0.00283,64359.0,64358.0,0.48388774]
[1721256602351,0.00283,64359.0,64358.0,0.32850774]
[1721256602563,0.158208,64359.0,64358.0,0.32850774]
[1721256603005,0.77972,64359.0,64358.0,0.031826]
[1721256603212,0.82620656,64359.0,64358.0,0.031826]
[1721256603836,0.82520656,64359.0,64358.0,0.017826]
[1721256604055,0.82420656,64359.0,64358.0,0.003826]
[1721256604469,0.82421354,64359.0,64358.0,0.016826]
[1721256604672,0.77772,64359.0,64358.0,0.016826]
[1721256605087,0.77872,64359.0,64358.0,0.027826]
[1721256607573,0.84846628,64359.0,64358.0,0.027826]
[1721256608416,0.155386,64356.0,64355.0,0.002794]
[1721256608606,0.155386,64356.0,64355.0,0.28341234]
[1721256609648,0.155386,64356.0,64355.0,0.29741234]
[1721256609649,0.156386,64356.0,64355.0,0.29741234]
[1721256610657,0.157386,64356.0,64355.0,0.30641193]
[1721256610868,0.002,64356.0,64355.0,0.30641193]
[1721256611084,0.002,64356.0,64355.0,0.78434574]
[1721256611292,0.002,64356.0,64355.0,1.22415107]
[1721256611645,0.002,64356.0,64355.0,1.53492707]
[1721256612503,0.00195513,64356.0,64355.0,1.53492707]
[1721256613690,0.00195513,64356.0,64355.0,1.53491526]
[1721256614752,0.00195513,64356.0,64355.0,1.22413926]
[1721256616124,0.00195513,64356.0,64355.0,1.22505226]
[1721256616789,0.155363,64365.0,64360.0,0.155375]
[1721256616937,0.04649162,64362.0,64361.0,0.15717574]
[1721256617137,0.04649162,64362.0,64361.0,0.15438174]
[1721256618321,0.04749162,64362.0,64361.0,0.15838174]
[1721256618528,0.04749162,64362.0,64361.0,0.39092953]
[1721256618738,0.04749162,64362.0,64361.0,0.53392953]
[1721256619165,0.04749162,64362.0,64361.0,0.45675474]
[1721256619364,0.04749162,64362.0,64361.0,0.30138174]
[1721256619898,0.04847737,64362.0,64361.0,0.54192953]
[1721256620303,0.002,64362.0,64361.0,0.54192953]
[1721256621604,0.002,64362.0,64361.0,0.46475474]
[1721256622072,0.002,64362.0,64361.0,0.30938174]
[1721256622316,0.04846866,64362.0,64361.0,0.30938174]
[1721256622585,0.002,64362.0,64361.0,0.30938174]
[1721256622822,0.04846114,64362.0,64361.0,0.30938174]
[1721256623060,0.002,64362.0,64361.0,0.30938174]
[1721256623316,0.04846097,64362.0,64361.0,0.30938174]
[1721256623549,0.04840092,64362.0,64361.0,0.30938174]
[1721256624859,0.04840092,64362.0,64361.0,0.24598174]
[1721256625544,0.00193995,64362.0,64361.0,0.24598174]
[1721256626371,0.77879495,64362.0,64361.0,0.012]
[1721256626576,0.92489495,64362.0,64361.0,0.012]
[1721256626788,1.32856972,64362.0,64361.0,0.012]
[1721256626992,1.23563695,64362.0,64361.0,0.012]
[1721256627200,1.32857167,64362.0,64361.0,0.012]
[1721256628930,1.35180291,64362.0,64361.0,0.012]
[1721256629463,1.23563695,64362.0,64361.0,0.012]
[1721256629696,1.35180999,64362.0,64361.0,0.012]
[1721256629936,1.26636228,64362.0,64361.0,0.012]
[1721256630178,1.26636228,64362.0,64361.0,0.004]
[1721256630417,1.26536228,64362.0,64361.0,0.004]
[1721256630650,1.27036228,64362.0,64361.0,0.005]
[1721256630885,1.26536228,64362.0,64361.0,0.004]
[1721256631143,1.28836228,64362.0,64361.0,0.004]
[1721256631400,1.087698,64356.0,64355.0,0.000913]
[1721256631900,0.776927,64356.0,64355.0,0.000913]
[1721256632139,0.8466207,64356.0,64355.0,0.000913]
[1721256632378,0.8466207,64356.0,64355.0,0.29229474]
[1721256632379,0.0696937,64356.0,64355.0,0.29229474]
[1721256632627,0.09292473,64358.0,64356.0,0.155385]
[1721256632628,0.0696937,64357.0,64356.0,0.155385]
[1721256632868,0.09292473,64358.0,64357.0,0.155383]
[1721256632869,0.04647246,64358.0,64357.0,0.155383]
[1721256633103,0.04647313,64358.0,64357.0,0.30976474]
[1721256634104,0.04647313,64359.0,64358.0,0.15538]
[1721256634350,0.04647313,64359.0,64358.0,0.30976174]
[1721256635573,0.04747313,64359.0,64358.0,0.31476174]
[1721256635825,0.04747378,64359.0,64358.0,0.31476174]
[1721256636318,0.04847378,64359.0,64358.0,0.32276174]
[1721256637776,0.04847378,64359.0,64358.0,0.16738174]
[1721256638491,0.002,64359.0,64358.0,0.16738174]
[1721256638735,0.77889,64359.0,64358.0,0.013]
[1721256639240,1.22325695,64359.0,64358.0,0.013]
[1721256639519,1.22325665,64359.0,64358.0,0.013]
[1721256639792,1.26973043,64359.0,64358.0,0.013]
[1721256640066,1.153546,64359.0,64358.0,0.013]
[1721256640605,1.26970578,64359.0,64358.0,0.013]
[1721256642048,1.26969595,64359.0,64358.0,0.013]
[1721256643523,0.84279,64359.0,64358.0,0.013]
[1721256643935,1.153546,64359.0,64358.0,0.013]
[1721256647635,1.089646,64359.0,64358.0,0.013]
[1721256648022,0.25027625,64359.0,64358.0,0.0787]
[1721256648450,0.25027517,64359.0,64358.0,0.0787]
[1721256648875,0.25027033,64359.0,64358.0,0.0787]
[1721256650384,0.157378,64359.0,64358.0,0.0787]
[1721256650586,0.002,64359.0,64358.0,1.09178374]
[1721256650805,0.07165377,64359.0,64358.0,0.47026174]
[1721256651629,0.0716414,64359.0,64358.0,0.78102274]
[1721256653787,0.002,64359.0,64358.0,0.78102274]
[1721256657191,0.002,64359.0,64358.0,0.47026174]
[1721256658046,0.002,64359.0,64358.0,0.78102274]
[1721256661087,0.04643555,64361.0,64358.0,0.62564274]
[1721256661287,0.04643555,64361.0,64359.0,0.31255174]
[1721256662560,0.04643555,64361.0,64359.0,0.15717574]
[1721256662929,0.04643555,64360.0,64359.0,0.15717574]
[1721256663136,0.04643555,64360.0,64359.0,0.15438174]
[1721256663357,0.156375,64361.0,64359.0,0.15438174]
[1721256663551,0.04643674,64360.0,64359.0,0.15438174]
[1721256663824,0.04643674,64360.0,64359.0,0.16038174]
[1721256664203,0.04643674,64360.0,64359.0,0.15438174]
[1721256664361,0.04743674,64360.0,64359.0,0.16138174]
[1721256664578,0.04843674,64360.0,64359.0,0.16638174]
[1721256666648,0.04844267,64360.0,64359.0,0.16638174]
[1721256667465,0.04844267,64360.0,64359.0,0.012]
[1721256667666,0.610528,64360.0,64359.0,0.012]
[1721256667894,0.92128,64360.0,64359.0,0.012]
[1721256668801,1.30169601,64360.0,64359.0,0.012]
[1721256669646,1.30171074,64360.0,64359.0,0.012]
[1721256670709,1.232032,64360.0,64359.0,0.012]
[1721256672767,1.321132,64360.0,64359.0,0.012]
[1721256673053,1.43726137,64360.0,64359.0,0.012]
[1721256673429,1.46026137,64360.0,64359.0,0.012]
[1721256673635,1.344132,64360.0,64359.0,0.012]
[1721256673790,1.343132,64360.0,64359.0,0.007]
[1721256674200,1.347132,64360.0,64359.0,0.001]
[1721256674691,1.350132,64360.0,64359.0,0.001]
[1721256675590,1.087663,64358.0,64357.0,0.000913]